[Event "Teplice Open 2022"]
[Site "Teplice"]
[Date "2022.06.22"]
[Round "5.11"]
[White "Kollars, Dmitrij"]
[Black "Nemec, Jachym"]
[Result "1-0"]
[ECO "B30"]
[WhiteElo "2635"]
[BlackElo "2363"]
[Annotator "TA"]
[PlyCount "87"]
[EventDate "2022.06.18"]
[EventType "swiss"]
[EventCountry "CZE"]
[SourceTitle "playchess.com"]
[Source "ChessBase"]
[SourceQuality "1"]
[TimeControl "40/5400+30:1800+30"]

{[%evp 10,87,20,22,24,17,25,31,27,13,46,49,54,44,93,93,93,89,124,126,137,132,136,131,227,228,250,272,261,251,262,260,260,262,260,268,260,260,277,252,241,253,225,211,183,114,232,232,210,216,274,256,360,318,374,366,337,187,375,370,458,461,458,411,451,453,445,436,524,513,962,913,29990,29991,29991,29991,29991,29992,29992,29993]} 1. e4 {[%emt 0:08:54]} c5 {[%emt 0:00:04]} 2. Nc3 {[%emt 0:00:09]} Nc6 {[%emt 0:00:18]} 3. Nf3 {[%emt 0:00:13]} e5 {[%emt 0:00:36]} 4. Bc4 {[%emt 0:00:12]} d6 {[%emt 0:00:39]} 5. d3 {[%emt 0:00:06]} Be7 {[%emt 0:00:05]} 6. O-O {[%emt 0:00:32][%cal Of3g5]} h6 {[%emt 0:07:44] Against Ng5. B30: Sicilian: 2...Nc6 3 Bb5, lines without ...g6.} 7. Nd5 {[%emt 0:07:23]} Nf6 {[%emt 0:02:42]} 8. c3 {[%emt 0:01:07]} O-O {[%emt 0:03:48] White is slightly better.} 9. a3 $5 {[%emt 0:01:55][%mdl 4] Leaves trodden paths.} Be6 {[%emt 0:14:23]} 10. b4 {[%emt 0:02:11]} b6 {[%emt 0:09:50] [#]} 11. Be3 $146 {[%emt 0:04:22]} ({Predecessor:} 11. Re1 Bg4 12. h3 Bxf3 13. Qxf3 Nxd5 14. Bxd5 Rc8 15. b5 Nb8 16. Qh5 Bg5 17. Bxg5 Qxg5 18. Qxg5 hxg5 {1-0 (45) Van Assendelft,F (2384)-Esser,N (2185) Maastricht 2011}) 11... Bxd5 {[%emt 0:04:01]} (11... Nb8 $14 {might be stronger.}) 12. exd5 $16 {[%emt 0:02:25]} Nb8 {[%emt 0:00:09]} 13. Nh4 {[%emt 0:03:35]} Kh7 {[%emt 0:20:49]} 14. Nf5 {[%emt 0:02:46]} Ng8 {[%emt 0:08:31]} 15. d4 {[%emt 0:14:52] [#] And now dxe5 would win. 0x0.00176352c279dp-1022s more active pieces.} cxd4 {[%emt 0:00:35]} 16. cxd4 {[%emt 0:00:07]} (16. Nxe7 dxe3 17. Nc6 Nxc6 18. dxc6 exf2+ 19. Rxf2 Nf6 $11) 16... e4 {[%emt 0:01:24]} (16... Nd7 $16) 17. f3 $18 {[%emt 0:04:05]} g6 {[%emt 0:06:41]} 18. Nxe7 {[%emt 0:01:38]} Qxe7 {[%emt 0:00:14]} 19. fxe4 {[%emt 0:00:09]} Qxe4 {[%emt 0:04:05]} 20. Qd2 {[%emt 0:00:47]} Qe7 {[%emt 0:04:39]} 21. Bf4 {[%emt 0:01:59]} Rd8 {[%emt 0:01:13]} 22. Rae1 {[%emt 0:02:03]} Qf8 {[%emt 0:00:06]} 23. Bg3 {[%emt 0:03:15]} Qg7 {[%emt 0:01:32]} 24. Qf4 {[%emt 0:03:24]} f5 {[%emt 0:01:08]} 25. Re6 {[%emt 0:02:46]} Nd7 {[%emt 0:00:24]} 26. Rxd6 {[%emt 0:08:48]} Ndf6 {[%emt 0:00:22]} 27. Qe3 {[%emt 0:02:16]} ({Better is} 27. Rc6 $18 {Strongly threatening d6.} Nxd5 28. Qf3) 27... Ng4 {[%emt 0:01:36] [#]} (27... Rxd6 $16 28. Bxd6 Rc8) 28. Qd3 $1 {[%emt 0:00:50]} Rxd6 {[%emt 0:00:32]} 29. Bxd6 {[%emt 0:00:04] Hoping for Bf4. This bishop pair is nice.} Rd8 {[%emt 0:00:05]} 30. Bg3 {[%emt 0:01:19]} Ne7 {[%emt 0:01:37]} (30... N4f6 $142 31. Be5 Qe7) 31. Bc7 {[%emt 0:03:16]} Rd7 {[%emt 0:01:16]} 32. d6 {[%emt 0:00:32]} Nc8 {[%emt 0:00:32]} 33. h3 {[%emt 0:03:13]} (33. Be6 $142) 33... Nf6 {[%emt 0:00:22]} (33... Nxd6 34. Bxd6 (34. hxg4 Nxc4 35. Qxc4 Rxc7 $17) 34... Rxd6) 34. Be6 {[%emt 0:00:36]} Nxd6 {[%emt 0:00:38]} 35. Bxd7 {[%emt 0:00:08]} Qxd7 {[%emt 0:00:04]} 36. Bxd6 {[%emt 0:00:07]} Qxd6 {[%emt 0:00:04][%mdl 4096] Endgame KQR-KQN} 37. d5 {[%emt 0:02:29]} Ne4 {[%emt 0:01:09]} 38. Qd4 {[%emt 0:00:59]} h5 {[%emt 0:00:20]} 39. Rc1 {[%emt 0:03:12] Rc8 is the strong threat.} Qg3 {[%emt 0:00:21]} (39... h4 $142 40. Rc8 Kh6 41. Rh8+ Kg5) 40. d6 {[%emt 0:02:54]} ({And not} 40. Rc8 Qe1+ 41. Kh2 Qg3+ 42. Kh1 Qe1+ 43. Qg1 Ng3+ 44. Kh2 Nf1+ 45. Kh1 Ng3+ 46. Kh2 Nf1+ 47. Kh1 Ng3+ $11) 40... Nxd6 {[%emt 0:00:17]} 41. Rc7+ {[%emt 0:30:55] White mates.} Kh6 {[%emt 0:30:05]} 42. Qg7+ {[%emt 0:01:25]} Kg5 {[%emt 0:00:05]} 43. Qe7+ {[%emt 0:00:03]} Kh6 {[%emt 0:00:11]} 44. h4 {[%emt 0:00:13] Weighted Error Value: White=0.10 (very precise) /Black=0.51} 1-0

[Event "Teplice Open 2022"]
[Site "Teplice"]
[Date "2022.06.22"]
[Round "5.12"]
[White "Vojta, Jakub"]
[Black "Romanov, Evgeny"]
[Result "0-1"]
[ECO "A25"]
[WhiteElo "2368"]
[BlackElo "2573"]
[Annotator "TA"]
[PlyCount "50"]
[EventDate "2022.06.18"]
[EventType "swiss"]
[EventCountry "CZE"]
[SourceTitle "playchess.com"]
[Source "ChessBase"]
[SourceQuality "1"]
[TimeControl "40/5400+30:1800+30"]

{[%evp 14,50,16,18,18,20,10,0,43,-96,-66,-127,-127,-130,-128,-133,-62,-309,-97,-116,-116,-123,-124,-124,-124,-124,-124,-124,-124,-162,-117,-218,-127,-298,-253,-427,-416,-380,-302]} 1. c4 {[%emt 0:00:03]} e5 {[%emt 0:06:20]} 2. g3 {[%emt 0:00:14]} Nc6 {[%emt 0:02:15]} 3. Bg2 {[%emt 0:00:10]} f5 {[%emt 0:00:24]} 4. Nc3 {[%emt 0:01:06]} Nf6 {[%emt 0:00:10]} 5. d3 {[%emt 0:03:31]} Bb4 {[%emt 0:01:05]} 6. Bd2 {[%emt 0:07:58]} O-O {[%emt 0:00:57]} 7. a3 {[%emt 0:06:05]} Bxc3 {[%emt 0:00:10]} 8. Bxc3 {[%emt 0:00:02]} d6 {[%emt 0:00:42][%cal Bd7d6,Bd6d5][%mdl 32] A25: English Opening vs King's Indian with ...Nc6 but without early d3.} 9. b4 {[%emt 0:03:02]} Qe8 {[%emt 0:00:40]} 10. a4 {[%emt 0:06:11] [#]} e4 $146 {[%emt 0:04:17] The position is equal.} ({Predecessor:} 10... Rb8 11. a5 Ne7 12. Nf3 Kh8 13. Qd2 Ng6 14. Ng5 h6 15. Nh3 f4 16. gxf4 Bxh3 17. Bxh3 Nxf4 {1-0 (46) Taylor,A (2071)-Thorpe,T (1925) Stirling 2014}) 11. d4 {[%emt 0:05:22]} (11. Nh3 $14 {keeps the upper hand.}) 11... d5 {[%emt 0:01:30]} 12. c5 {[%emt 0:02:14]} (12. b5 $15 Ne7 13. Qb3) 12... f4 $1 $17 {[%emt 0:09:02]} 13. gxf4 {[%emt 0:08:04]} Qg6 {[%emt 0:03:57]} 14. Kf1 {[%emt 0:09:19]} Bg4 {[%emt 0:08:36]} (14... Nh5 $1 $17 {[%cal Rh5f4]} 15. e3 Rxf4 $1) 15. Qc2 $2 {[%emt 0:10:50]} (15. h3 $15 Bh5 16. Qc2) 15... Ne7 $2 {[%emt 0:04:25]} (15... Nh5 $1 $19 {[%cal Rh5f4]} 16. e3 Rxf4) 16. e3 {[%emt 0:06:09]} Nf5 {[%emt 0:02:35]} 17. h3 {[%emt 0:05:19]} Bf3 {[%emt 0:04:31]} 18. Rh2 {[%emt 0:00:25] [#]} Nh4 $36 {[%emt 0:00:56][%cal Rf3g2][%mdl 2048] White is under strong pressure. 0x0.0022faeec7b8dp-1022s more active pieces.} 19. Bxf3 {[%emt 0:03:56]} exf3 {[%emt 0:00:00]} 20. Qxg6 {[%emt 0:00:30]} hxg6 {[%emt 0:00:00]} 21. Ke1 {[%emt 0:06:47]} Ne4 {[%emt 0:00:50] Pair of Knights!} 22. Ra3 {[%emt 0:00:26] [#]} (22. Rc1 $17) 22... Rf5 {[%emt 0:02:22]} ({Black should play} 22... b6 $1 $19 23. Kd1 g5 24. fxg5 Rf5) 23. b5 $2 {[%emt 0:01:20]} (23. Kf1 $17 {was called for.}) 23... g5 {[%emt 0:01:57]} 24. fxg5 $2 {[%emt 0:00:05]} (24. Bb4) 24... Rxg5 $19 {[%emt 0:00:28][%cal Rg5g1]} 25. Kf1 {[%emt 0:00:07]} a6 {[%emt 0:04:01] Weighted Error Value: White=0.67/Black=0.36} 0-1

[Event "Teplice Open 2022"]
[Site "Teplice"]
[Date "2022.06.22"]
[Round "5.13"]
[White "Sanal, Vahap"]
[Black "Hoefelsauer, Thomas"]
[Result "1-0"]
[ECO "B19"]
[WhiteElo "2575"]
[BlackElo "2334"]
[Annotator "TA"]
[PlyCount "127"]
[EventDate "2022.06.18"]
[EventType "swiss"]
[EventCountry "CZE"]
[SourceTitle "playchess.com"]
[Source "ChessBase"]
[SourceQuality "1"]
[TimeControl "40/5400+30:1800+30"]

{[%evp 26,127,18,25,20,12,20,18,25,16,17,5,13,12,17,0,0,0,4,0,0,0,0,0,10,9,2,0,0,0,0,0,0,0,0,0,0,0,0,0,0,0,0,0,0,0,0,0,0,-5,0,0,52,56,55,54,45,49,85,97,85,101,153,150,161,142,188,83,76,77,97,83,82,83,468,314,895,1022,1432,1437,1472,1356,1483,1046,1239,1180,1011,942,1464,1266,2888,3462,1679,2674,1818,1714,6305,6189,5097,4627,29972,29973,29967,12846]} 1. e4 {[%emt 0:00:06]} c6 {[%emt 0:00:03]} 2. d4 {[%emt 0:00:12]} d5 {[%emt 0:00:05]} 3. Nc3 {[%emt 0:00:07]} dxe4 {[%emt 0:00:05]} 4. Nxe4 {[%emt 0:00:03]} Bf5 {[%emt 0:00:07]} 5. Ng3 {[%emt 0:00:03]} Bg6 {[%emt 0:00:08]} 6. h4 {[%emt 0:00:05]} h6 {[%emt 0:00:06]} 7. Nf3 {[%emt 0:00:04]} Nd7 {[%emt 0:00:18]} 8. h5 {[%emt 0:00:08]} Bh7 {[%emt 0:00:05]} 9. Bd3 {[%emt 0:00:05]} Bxd3 {[%emt 0:00:05]} 10. Qxd3 {[%emt 0:00:04]} e6 {[%emt 0:00:07]} 11. Bd2 {[%emt 0:00:06]} Ngf6 {[%emt 0:00:05]} 12. O-O-O {[%emt 0:00:05]} Be7 {[%emt 0:00:06]} 13. Ne4 {[%emt 0:00:03]} Nxe4 {[%emt 0:00:16]} 14. Qxe4 {[%emt 0:00:03]} Nf6 {[%emt 0:00:09] B19: Classical Caro-Kann: 4...Bf5 main line.} 15. Qd3 {[%emt 0:00:05]} c5 {[%emt 0:00:37]} 16. Qb5+ {[%emt 0:00:06] 16.Kb1 is not played anymore.} (16. Ne5 {looks sharper.} O-O 17. dxc5 Qc7 18. f4) 16... Qd7 {[%emt 0:00:07] The position is equal.} 17. Qxd7+ {[%emt 0:00:04]} Nxd7 {[%emt 0:00:07]} 18. Be3 {[%emt 0:00:04]} cxd4 {[%emt 0:02:44]} 19. Bxd4 {[%emt 0:00:14]} Bf6 {[%emt 0:03:18]} 20. Bxf6 {[%emt 0:03:03]} Nxf6 {[%emt 0:01:34]} 21. Ne5 {[%emt 0:00:39]} Ke7 {[%emt 0:02:42] [#]} 22. Rh4 $146 {[%emt 0:05:54]} ({Predecessor:} 22. Rh3 Rhc8 23. Rhd3 Rc5 24. f4 Rac8 25. c3 R8c7 26. g3 Rd5 27. Rxd5 Nxd5 28. Rd4 {1-0 (41) Katz,A (2330)-Shmeliov,D (2398) ICC INT 2015}) 22... Rhc8 {[%emt 0:09:01]} 23. Rb4 {[%emt 0:10:12]} Rc7 {[%emt 0:01:19]} 24. g4 {[%emt 0:00:28]} Rd8 {[%emt 0:02:02]} 25. Rxd8 {[%emt 0:03:00]} Kxd8 $11 {[%emt 0:00:02][%mdl 4096] Endgame KRN-KRN} 26. Rd4+ {[%emt 0:00:21]} Ke7 {[%emt 0:01:42]} 27. Kd2 {[%emt 0:03:11]} Rc5 {[%emt 0:08:46]} 28. f4 {[%emt 0:01:04]} Nd5 {[%emt 0:07:36][%cal Od5f4]} 29. Nd3 {[%emt 0:02:16]} Ra5 {[%emt 0:01:02]} 30. a4 {[%emt 0:02:06]} Nf6 {[%emt 0:05:10]} 31. Ne5 {[%emt 0:01:30]} Nd5 {[%emt 0:01:28][%cal Od5f4] Inhibits Rb4.} 32. Nd3 {[%emt 0:03:06]} Nf6 {[%emt 0:00:11]} 33. Rb4 {[%emt 0:00:07]} b6 {[%emt 0:08:09]} 34. Ne5 {[%emt 0:00:39] [#] Black must now prevent Nc6+.} Rd5+ {[%emt 0:00:53]} 35. Kc1 {[%emt 0:00:38]} Rc5 {[%emt 0:04:54]} 36. Rd4 {[%emt 0:02:52]} Nd5 {[%emt 0:03:14][%cal Od5f4]} 37. b4 {[%emt 0:00:39]} Rc7 {[%emt 0:12:01]} 38. Kd2 {[%emt 0:02:37]} Nf6 {[%emt 0:13:05]} ({Black should play} 38... Kf6 $11) 39. b5 $14 {[%emt 0:06:47] Threatens to win with Nc6+.} Nd7 $1 {[%emt 0:02:47]} 40. Nc6+ {[%emt 0:00:30]} Kf6 {[%emt 0:01:18]} 41. Ke3 {[%emt 0:30:31]} Nc5 {[%emt 0:33:04]} 42. a5 {[%emt 0:04:07] White is more active.} bxa5 {[%emt 0:04:28]} 43. Nxa5 {[%emt 0:00:17]} Nb7 {[%emt 0:00:00] Against Rd6} (43... g5 $142) 44. Nxb7 $16 {[%emt 0:00:00]} Rxb7 {[%emt 0:00:00] KR-KR} 45. c4 {[%emt 0:00:00][%cal Bc2c4,Bc4c5,Bc5c6][%mdl 32]} Ke7 {[%emt 0:00:00] Inhibits Rd8.} (45... Rc7 $16) 46. Kd3 {[%emt 0:00:00]} (46. Rd2 $18 {and White stays clearly on top.}) 46... a6 {[%emt 0:00:00]} 47. bxa6 {[%emt 0:00:00]} Ra7 {[%emt 0:00:00]} 48. c5 {[%emt 0:00:00]} Rxa6 {[%emt 0:00:00]} 49. Kc3 {[%emt 0:00:00] Strongly threatening Kb4.} Ra1 $2 {[%emt 0:00:00][%mdl 8192] [#] This move loses the game for Black.} (49... Ra8 $16 {is more resistant.}) 50. Kb4 $1 $18 {[%emt 0:00:00] And now c6 would win.} g6 $2 {[%emt 0:00:00]} (50... Rc1 51. Kb5 g6 52. hxg6 fxg6) 51. c6 {[%emt 0:00:00]} gxh5 {[%emt 0:00:00]} 52. gxh5 {[%emt 0:00:00]} Rh1 {[%emt 0:04:17]} 53. Rd7+ {[%emt 0:00:00]} Ke8 {[%emt 0:00:06]} 54. Rd3 {[%emt 0:00:00]} Ke7 {[%emt 0:00:54]} 55. Rd4 {[%emt 0:00:00]} Rh2 {[%emt 0:00:48]} 56. Rd1 {[%emt 0:00:00]} Rc2 {[%emt 0:03:47]} 57. Kb5 {[%emt 0:00:00]} Rb2+ {[%emt 0:00:01]} 58. Ka6 {[%emt 0:00:00]} Rc2 {[%emt 0:00:11]} 59. Kb7 {[%emt 0:00:00]} Rb2+ {[%emt 0:00:06]} 60. Kc8 {[%emt 0:00:00] aiming for Rd7+.} Rc2 {[%emt 0:00:37]} 61. c7 {[%emt 0:00:00] White threatens Rb1 and mate.} Rb2 {[%emt 0:00:27] Prevents Rb1.} 62. Ra1 {[%emt 0:00:00] Intending Ra7 and mate.} f6 {[%emt 0:04:34]} 63. Ra7 {[%emt 0:00:00]} e5 {[%emt 0:00:27]} 64. Rb7 {[%emt 0:00:00] Weighted Error Value: White=0.05 (flawless) /Black=0.46} 1-0

[Event "Teplice Open 2022"]
[Site "Teplice"]
[Date "2022.06.22"]
[Round "5.14"]
[White "Laurusas, Tomas"]
[Black "Smolik, Jachym"]
[Result "1-0"]
[ECO "D24"]
[WhiteElo "2567"]
[BlackElo "2272"]
[Annotator "TA"]
[PlyCount "35"]
[EventDate "2022.06.18"]
[EventType "swiss"]
[EventCountry "CZE"]
[SourceTitle "playchess.com"]
[Source "ChessBase"]
[SourceQuality "1"]
[TimeControl "40/5400+30:1800+30"]

{[%evp 11,35,6,0,0,0,0,16,-18,-17,-22,-13,-23,3,0,0,0,0,0,60,28,582,579,1930,741,1909,1806]} 1. d4 {[%emt 0:00:07]} Nf6 {[%emt 0:00:08]} 2. c4 {[%emt 0:00:20]} e6 {[%emt 0:00:07]} 3. Nf3 {[%emt 0:00:09]} d5 {[%emt 0:00:10]} 4. Nc3 {[%emt 0:00:28][%cal Bb1c3,Bc3e2,Be2f4][%mdl 32]} dxc4 {[%emt 0:00:16]} 5. e3 {[%emt 0:10:29]} a6 {[%emt 0:00:06]} 6. a4 {[%emt 0:00:20]} Bb4 {[%emt 0:01:02]} 7. Bxc4 {[%emt 0:00:42] D24: Queen's Gambit Accepted: 3 Nf3 Nf6 4 Nc3.} b6 {[%emt 0:02:10]} 8. O-O {[%emt 0:02:17]} Bb7 {[%emt 0:03:25] Inhibits e4.} 9. Ne2 $5 {[%emt 0:06:18][%mdl 4] The position is equal. Exploring less charted territory.} O-O {[%emt 0:03:48]} 10. b3 {[%emt 0:01:08] [#]} Qe7 $146 {[%emt 0:09:29]} ({Predecessor:} 10... c5) 11. Bb2 {[%emt 0:01:54]} c5 {[%emt 0:05:12]} 12. dxc5 {[%emt 0:12:32]} Bxc5 {[%emt 0:04:46]} 13. Nf4 {[%emt 0:10:33]} Nc6 {[%emt 0:05:45]} 14. Ng5 {[%emt 0:07:03]} e5 {[%emt 0:09:22]} (14... Nb4 $11) 15. Qb1 {[%emt 0:03:32] Strongly threatening Nd5.} g6 $2 {[%emt 0:00:25][%mdl 8192] [#]} (15... Na5 $1 $11 {and Black stays safe.} 16. Nd5 Bxd5 17. Bxd5 Rad8) 16. Nxg6 $1 $18 {[%emt 0:00:30][%mdl 512] White is clearly winning.} hxg6 {[%emt 0:01:32]} (16... Qd6 17. Nxf8) 17. Qxg6+ {[%emt 0:00:19]} Kh8 {[%emt 0:00:02]} 18. Bxf7 {[%emt 0:00:17] Weighted Error Value: White=0.08 (flawless) /Black=0.83} 1-0

[Event "Teplice Open 2022"]
[Site "Teplice"]
[Date "2022.06.22"]
[Round "5.16"]
[White "Iniyan, P."]
[Black "Ehrke, Michael"]
[Result "1-0"]
[ECO "D34"]
[WhiteElo "2518"]
[BlackElo "2223"]
[Annotator "TA"]
[PlyCount "61"]
[EventDate "2022.06.18"]
[EventType "swiss"]
[EventCountry "CZE"]
[SourceTitle "playchess.com"]
[Source "ChessBase"]
[SourceQuality "1"]
[TimeControl "40/5400+30:1800+30"]

{[%evp 28,61,34,27,34,29,39,0,0,0,10,0,33,0,0,0,4,0,0,0,3,0,52,42,137,120,174,162,187,102,64,62,968,955,29982,29981]} 1. d4 {[%emt 0:08:25] Ftacnik,L} d5 {[%emt 0:01:11]} 2. c4 {[%emt 0:00:15]} e6 {[%emt 0:00:31]} 3. Nc3 {[%emt 0:00:07]} c5 {[%emt 0:00:44]} 4. cxd5 {[%emt 0:00:06]} exd5 {[%emt 0:00:16]} 5. Nf3 {[%emt 0:00:04]} Nc6 {[%emt 0:00:53]} 6. g3 {[%emt 0:00:07]} Nf6 {[%emt 0:00:43]} 7. Bg2 {[%emt 0:00:06]} Be7 {[%emt 0:00:38]} 8. O-O {[%emt 0:00:09]} O-O {[%emt 0:00:46]} 9. Bg5 {[%emt 0:00:04]} c4 {[%emt 0:00:50]} 10. Ne5 {[%emt 0:00:05]} Be6 {[%emt 0:01:03]} 11. f4 {[%emt 0:00:05]} Ng4 {[%emt 0:05:13]} 12. Nxg4 {[%emt 0:00:07]} Bxg4 {[%emt 0:03:06]} 13. Bxd5 {[%emt 0:00:12]} Bxg5 {[%emt 0:01:46]} 14. fxg5 {[%emt 0:00:07]} Qxg5 {[%emt 0:01:14]} 15. Rf4 {[%emt 0:00:06]} Rad8 {[%emt 0:01:57] D34: Tarrasch Defence: 6 g3 Nf6 7 Bg2 Be7.} 16. Qd2 {[%emt 0:00:07]} ({Much worse is} 16. Bxc4 {[#]} Nxd4 $1 17. Qf1 Ne6 18. Bxe6 Bxe6 $15) 16... h6 {[%emt 0:09:04] [#]} 17. h4 $146 {[%emt 0:21:48]} ({Predecessor:} 17. Rd1 Be6 18. Bg2 Bc8 19. Qe3 Ne7 20. d5 Nf5 21. Qxa7 Rfe8 22. Ne4 Qe7 23. Qb6 {1-0 (47) Ivanchuk,V (2711)-Grischuk,A (2702) Moscow 2002 CBM 090 [Ftacnik,L]}) 17... Qg6 {[%emt 0:12:42] The position is equal.} 18. Kh2 {[%emt 0:11:47]} Be6 {[%emt 0:04:52]} 19. Bg2 {[%emt 0:10:27]} Bc8 {[%emt 0:10:17]} 20. Qe3 {[%emt 0:03:13]} a6 {[%emt 0:10:23]} 21. Raf1 {[%emt 0:03:07]} Qd6 {[%emt 0:12:03]} 22. Qf2 {[%emt 0:08:18][%cal Rf4f7]} f5 {[%emt 0:06:23]} 23. Bd5+ {[%emt 0:09:55]} Kh8 {[%emt 0:00:56]} 24. e4 {[%emt 0:05:16][%cal Be2e4,Be4e5][%mdl 32]} Nb4 {[%emt 0:05:40]} (24... Ne7 $11) 25. e5 $14 {[%emt 0:02:14]} ({Of course not} 25. Bxc4 g5 26. hxg5 hxg5 $11) 25... Qb6 {[%emt 0:04:23]} ({Black should play} 25... Qe7 $14 26. Be4 (26. Bxc4 b5 $14) 26... Be6) 26. Bxc4 $16 {[%emt 0:00:08] Threatens to win with d5.} g5 {[%emt 0:00:29] [#]} (26... Qc7 $16 {might work better.}) 27. d5 $1 $36 {[%emt 0:00:06][%mdl 2048] White is really pushing.} Qc7 {[%emt 0:03:23]} 28. hxg5 {[%emt 0:11:43]} ({Only move:} 28. d6 $18 Qg7 29. hxg5 hxg5 30. Rd4) 28... hxg5 $16 {[%emt 0:00:08]} 29. Kg2 {[%emt 0:00:19]} gxf4 $4 {[%emt 0:01:39][%mdl 8192]} (29... Kg7 $14) 30. Rh1+ $18 {[%emt 0:00:22]} Kg7 {[%emt 0:00:14]} 31. Qxf4 {[%emt 0:00:05] Weighted Error Value: White=0.14 (very precise) /Black=0.68} 1-0

[Event "Teplice Open 2022"]
[Site "Teplice"]
[Date "2022.06.22"]
[Round "5.17"]
[White "Stijve, Theo"]
[Black "Budisavljevic, Luka"]
[Result "1-0"]
[ECO "A33"]
[WhiteElo "2341"]
[BlackElo "2507"]
[Annotator "TA"]
[PlyCount "79"]
[EventDate "2022.06.18"]
[EventType "swiss"]
[EventCountry "CZE"]
[SourceTitle "playchess.com"]
[Source "ChessBase"]
[SourceQuality "1"]
[TimeControl "40/5400+30:1800+30"]

{[%evp 14,79,0,0,0,-20,0,0,0,0,8,0,13,22,16,8,8,8,8,8,6,9,3,6,6,0,0,0,25,0,62,-42,-52,-22,-25,-62,-25,-37,70,19,187,164,170,160,244,236,291,291,291,261,279,281,256,258,450,450,813,848,796,796,818,786,975,946,945,921,750,696]} 1. Nf3 {[%emt 0:00:03]} c5 {[%emt 0:18:56]} 2. c4 {[%emt 0:01:39]} Nc6 {[%emt 0:00:25]} 3. d4 {[%emt 0:00:08]} cxd4 {[%emt 0:00:08]} 4. Nxd4 {[%emt 0:00:06]} e6 {[%emt 0:00:24]} 5. Nc3 {[%emt 0:00:09]} Nf6 {[%emt 0:00:20]} 6. g3 {[%emt 0:00:07]} Qb6 {[%emt 0:00:47]} 7. Ndb5 {[%emt 0:00:16]} Ne5 {[%emt 0:00:22]} 8. Bg2 {[%emt 0:00:17] 8.Bf4 injects fresh life into this line.} a6 {[%emt 0:00:24] A33: Symmetrical English: 2 Nf3 Nf6 3 d4 cxd4 4 Nxd4 e6 5 Nc3 Nc6.} 9. Na4 {[%emt 0:00:11]} Qa5+ {[%emt 0:00:42]} 10. Nbc3 {[%emt 0:00:28][%cal Oc4c5]} Nxc4 {[%emt 0:00:16] White must now prevent ...d5. The position is equal.} 11. O-O {[%emt 0:00:25] 11.b3 is not played anymore.} d5 {[%emt 0:00:28]} 12. b3 {[%emt 0:00:07]} Nd6 {[%emt 0:01:01]} 13. Qe1 {[%emt 0:00:19][%cal Oc3d5]} Be7 {[%emt 0:00:55] [#]} 14. Bd2 $146 {[%emt 0:00:11][%cal Oc3d5]} ({Predecessor:} 14. e4 dxe4 15. Nxe4 Qxe1 16. Nxd6+ Bxd6 17. Rxe1 Bd7 18. Bxb7 Ra7 19. Bg2 Bxa4 20. bxa4 {½-½ (52) Esipenko,A (2682)-Sarana,A (2654) Chess.com INT 2020}) 14... Qd8 {[%emt 0:02:10] [#]} 15. Nxd5 $1 {[%emt 0:00:19]} exd5 {[%emt 0:27:26]} 16. Ba5 {[%emt 0:00:12]} b6 $1 {[%emt 0:00:06]} (16... Qd7 $2 17. Nb6 $18) 17. Nxb6 {[%emt 0:00:11][%cal Ba4b6,Bb6a8,Ba8c7][%mdl 32]} Nb7 {[%emt 0:05:36][%cal Ob7a5]} 18. Nxa8 {[%emt 0:00:16]} Nxa5 {[%emt 0:06:13]} ({Don't do} 18... Qxa5 19. Qxa5 Nxa5 20. Nc7+ Kd7 21. Nxd5 Nxd5 22. Bxd5 $16) 19. Qc3 {[%emt 0:02:17] Against Nc6} O-O {[%emt 0:03:24]} 20. Nc7 {[%emt 0:01:53]} Nb7 {[%emt 0:09:35]} 21. Rfd1 {[%emt 0:10:49][%cal Rc7d5]} Nd6 {[%emt 0:05:57]} (21... Bc5 $11 22. Nxd5 Nxd5 23. Bxd5 Qb6) 22. Rac1 {[%emt 0:20:10] White is much more active.} (22. Bxd5 $14 Qd7 23. Rac1) 22... Nb5 $15 {[%emt 0:03:18]} 23. Nxb5 {[%emt 0:08:53]} axb5 {[%emt 0:00:01]} 24. a4 $1 {[%emt 0:01:47]} bxa4 {[%emt 0:03:40]} 25. bxa4 {[%emt 0:00:11]} Ba6 {[%emt 0:01:01]} (25... Bf5 $15) 26. e4 $1 $14 {[%emt 0:02:08][%cal Be2e4,Be4e5][%mdl 1056] With the idea e5. White has compensation.} Bb7 $2 {[%emt 0:02:33] This costs Black the game.} (26... Qb8 $1 $11) 27. Qc7 {[%emt 0:07:42]} Ba8 {[%emt 0:00:20]} 28. e5 $36 {[%emt 0:00:54][%mdl 2048] White is in control.} Ng4 {[%emt 0:01:50]} (28... Ba3 $16 {was necessary.}) 29. h3 $18 {[%emt 0:05:03]} Qxc7 {[%emt 0:00:22]} 30. Rxc7 {[%emt 0:00:13]} Bd8 {[%emt 0:00:00] [#] And now ...Nxf2 would win.} 31. Rc8 {[%emt 0:02:52]} Bb7 {[%emt 0:02:59] Hoping for ...Nxf2.} (31... Nxf2 $2 32. Rb1 Bc6 33. Rxc6 $18) 32. Rb8 {[%emt 0:01:19]} Nxf2 {[%emt 0:00:49]} 33. Rb1 {[%emt 0:01:05]} Nxh3+ $2 {[%emt 0:00:08]} (33... Bc6 {might work better.}) 34. Bxh3 {[%emt 0:01:28] White is clearly winning.} ({Not} 34. Kh2 Bc6 $18) 34... Bb6+ {[%emt 0:00:06]} (34... Ba6 $142 35. Bf1 Bc4 36. Bxc4 dxc4) 35. Rxb6 {[%emt 0:00:08]} Rxb8 {[%emt 0:00:02]} 36. a5 {[%emt 0:00:27] Threatens to win with a6.} Ra8 {[%emt 0:00:37] Inhibits a6.} 37. Rxb7 {[%emt 0:00:13][%cal Oa5a6] a6! is the strong threat.} Kf8 {[%emt 0:00:01]} 38. Rb5 {[%emt 0:01:16]} d4 {[%emt 0:00:01]} 39. Kf2 {[%emt 0:01:15]} Ke7 {[%emt 0:00:16]} 40. Ke2 {[%emt 0:00:23] Weighted Error Value: White=0.06 (flawless) /Black=0.36} 1-0